fUSD/lending_fUSD_20260112
["ID","MTS","AMOUNT","RATE_DAILY","PERIOD"]
[401411737,1768192039306,2400.0,0.000129,4]
[401411738,1768192041118,-14713.25544064,0.0001275,2]
[401411739,1768192041145,-299.99,0.00012794,2]
[401411740,1768192041172,-449.88569774,0.00012794,2]
[401411741,1768192041199,-500.0,0.00012794,2]
[401411742,1768192041225,-500.0,0.00012794,2]
[401411743,1768192041250,-500.0,0.00012794,2]
[401411744,1768192041276,-500.0,0.00012794,2]
[401411745,1768192041303,-500.0,0.00012794,2]
[401411746,1768192041328,-500.0,0.00012794,2]
[401411747,1768192041356,-500.0,0.00012794,2]
[401411748,1768192041383,-500.0,0.00012794,2]
[401411749,1768192041410,-500.0,0.00012794,2]
[401411750,1768192041435,-500.0,0.00012794,2]
[401411751,1768192041460,-500.0,0.00012794,2]
[401411752,1768192041485,-500.0,0.00012794,2]
[401411753,1768192041510,-500.0,0.00012794,2]
[401411754,1768192041535,-233.19424354,0.00012794,2]
[401411755,1768192041643,4800.0,0.000139,5]
[401411760,1768192090574,-266.80575646,0.00012794,2]
[401411761,1768192090608,-500.0,0.00012794,2]
[401411762,1768192090645,-500.0,0.00012794,2]
[401411763,1768192090680,-500.0,0.00012794,2]
[401411764,1768192090713,-500.0,0.00012794,2]
[401411765,1768192090751,-500.0,0.00012794,2]
[401411766,1768192090782,-350.59118676,0.00012795,2]
[401411767,1768192090925,-3765.21611356,0.00012795,2]
[401411768,1768192102954,-378.62450157,0.0001216,2]
[401411769,1768192105392,-304.05069773,0.0001216,2]
[401411772,1768192108765,-203.39282246,0.0001216,2]
[401411773,1768192111188,-390.97888552,0.0001216,2]
[401411774,1768192131101,-145.54309272,0.0001216,2]
[401411775,1768192131133,-196.0,0.00012794,2]
[401411776,1768192131195,-9316.92381456,0.00012795,2]
[401411777,1768192141914,-3082.15992812,0.00012795,2]
[401411778,1768192141939,-3835.69014376,0.00012795,2]
[401411779,1768192142279,-4068.79,0.00012795,2]
[401411780,1768192142305,-1862.43,0.00012795,2]
[401411781,1768192158078,-1494.0,0.00012625,2]
[401411782,1768192158099,-150.0,0.00012625,2]
[401411783,1768192158121,-166.99769429,0.00012625,2]
[401411784,1768192158143,-362.03180953,0.00012625,2]
[401411785,1768192159079,-152.96819047,0.00012625,2]
[401411786,1768192159100,-151.53770348,0.00012625,2]
[401411787,1768192159126,-500.0,0.00012625,2]
[401411788,1768192159148,-1494.0,0.0001268,2]
[401411789,1768192159170,-153.68270293,0.0001268,2]
[401411790,1768192159193,-515.0,0.0001268,2]
[401411791,1768192159215,-500.0,0.0001268,2]
[401411792,1768192159238,-1494.0,0.00012735,2]
[401411793,1768192159262,-515.0,0.00012735,2]
[401411794,1768192159287,-500.0,0.00012735,2]
[401411795,1768192159309,-1494.0,0.00012789,2]
[401411796,1768192159332,-515.0,0.00012789,2]
[401411797,1768192159355,-500.0,0.00012789,2]
[401411798,1768192159377,-9999.99,0.00012795,2]
[401411799,1768192159399,-9999.99,0.00012795,2]
[401411800,1768192159421,-5549.43,0.00012795,2]
[401411801,1768192159442,-192.15268833,0.00012806,2]
[401411802,1768192159463,-365.4175581,0.00012806,2]
[401411803,1768192159487,-220.41727351,0.00012806,2]
[401411804,1768192159513,-500.0,0.00012806,2]
[401411805,1768192159540,-247.04904943,0.00012806,2]
[401411806,1768192159561,-500.0,0.00012806,2]
[401411807,1768192159584,-1491.05373728,0.00012807,2]
[401411808,1768192159603,-355.9895,0.00012807,2]
[401411809,1768192159623,-9999.99,0.00012807,2]
[401411810,1768192159642,-299.99,0.00012807,2]
[401411811,1768192159662,-563.1108,0.00012807,2]
[401411812,1768192159681,-569.59648638,0.00012844,2]
[401411813,1768192159701,-500.0,0.00012844,2]
[401411814,1768192159722,-600.81457361,0.00012844,2]
[401411815,1768192159747,-500.0,0.00012844,2]
[401411816,1768192159768,-1494.0,0.00012844,2]
[401411817,1768192159792,-515.0,0.00012844,2]
[401411818,1768192159815,-500.0,0.00012844,2]
[401411819,1768192159836,-150.99,0.00012847,2]
[401411820,1768192159858,-5915.23,0.00012847,2]
[401411821,1768192159878,-999.99,0.00012847,2]
[401411822,1768192159901,-150.99,0.00012847,2]
[401411823,1768192159922,-124246.9265023,0.00012848,2]
[401411824,1768192159941,-500.0,0.0001285,2]
[401411825,1768192159962,-500.0,0.00012899,2]
[401411826,1768192159981,-500.0,0.00012899,2]
[401411827,1768192160001,-1494.0,0.00012899,2]
[401411828,1768192160022,-515.0,0.00012899,2]
[401411829,1768192160042,-500.0,0.00012899,2]
[401411830,1768192160062,-151.0,0.00012899,2]
[401411831,1768192160082,-151.0,0.00012899,2]
[401411832,1768192160102,-151.0,0.00012899,2]
[401411833,1768192160122,-151.0,0.00012899,2]
[401411834,1768192160142,-151.0,0.00012899,2]
[401411835,1768192160174,-151.0,0.00012899,2]
[401411836,1768192160194,-151.0,0.00012899,2]
[401411837,1768192160215,-151.0,0.00012899,2]
[401411838,1768192160235,-151.0,0.00012899,2]
[401411839,1768192160255,-151.0,0.00012899,2]
[401411840,1768192160276,-151.0,0.00012899,2]
[401411841,1768192160296,-151.0,0.00012899,2]
[401411842,1768192160317,-151.0,0.00012899,2]
[401411843,1768192160336,-151.0,0.00012899,2]
[401411844,1768192160356,-151.0,0.00012899,2]
[401411845,1768192160376,-151.0,0.00012899,2]
[401411846,1768192160398,-151.0,0.00012899,2]
[401411847,1768192160417,-151.0,0.00012899,2]
[401411848,1768192160438,-151.0,0.00012899,2]
[401411849,1768192160458,-151.0,0.00012899,2]
[401411850,1768192160479,-200.0,0.00012899,2]
[401411851,1768192160503,-151.0,0.00012899,2]
[401411852,1768192160522,-151.0,0.00012899,2]
[401411853,1768192160543,-151.0,0.00012899,2]
[401411854,1768192160563,-151.0,0.00012899,2]
[401411855,1768192160583,-151.0,0.00012899,2]
[401411856,1768192160602,-200.0,0.00012899,2]
[401411857,1768192160621,-500.0,0.00012899,2]
[401411858,1768192160641,-151.0,0.00012899,2]
[401411859,1768192160661,-151.0,0.00012899,2]
[401411860,1768192160682,-151.0,0.00012899,2]
[401411861,1768192160703,-151.0,0.00012899,2]
[401411862,1768192160723,-151.0,0.00012899,2]
[401411863,1768192160742,-151.0,0.00012899,2]
[401411864,1768192160764,-151.0,0.00012899,2]
[401411865,1768192160784,-151.0,0.00012899,2]
[401411866,1768192160805,-293.83522912,0.00012899,2]
[401411867,1768192160825,-500.0,0.00012899,2]
[401411868,1768192160845,-500.0,0.00012905,2]
[401411869,1768192161219,-1269.29,0.00012905,2]
[401411870,1768192161245,-65825.47425256,0.00012907,2]
[401411871,1768192161501,-25562.46050479,0.00012907,2]
[401411872,1768192169098,-22985.03466099,0.00012695,2]
[401411873,1768192179407,-10000.01,0.00012695,2]
[401411874,1768192179511,-10000.01,0.00012695,2]
[401411875,1768192179630,-10000.01,0.00012695,2]
[401411876,1768192179764,-10000.01,0.00012695,2]
[401411877,1768192179890,-10000.01,0.00012695,2]
[401411878,1768192180223,-10000.01,0.00012695,2]
[401411879,1768192180548,-10000.01,0.00012695,2]
[401411880,1768192180742,-10000.01,0.00012695,2]
[401411882,1768192220763,-150.0,0.00012625,2]
[401411883,1768192220795,-178.90011293,0.00012625,2]
[401411884,1768192220826,-150.0,0.00012625,2]
[401411885,1768192220856,-150.0,0.00012625,2]
[401411886,1768192220884,-500.0,0.00012625,2]
[401411887,1768192220913,-500.0,0.00012625,2]
[401411888,1768192221049,-6742.20977414,0.00012672,2]
[401411889,1768192221107,-10000.01,0.00012672,2]
[401411890,1768192221153,-10000.01,0.00012672,2]
[401411891,1768192221349,-924.32977414,0.00012672,2]
[401411892,1768192221377,-8151.35045172,0.00012672,2]
[401411893,1768192221565,-209.06323949,0.0001268,2]
[401411894,1768192221596,-150.0,0.0001268,2]
[401411895,1768192221626,-500.0,0.0001268,2]
[401411896,1768192221655,-500.0,0.0001268,2]
[401411897,1768192221683,-254.0,0.00012681,2]
[401411898,1768192221710,-1950.1,0.00012681,2]
[401411899,1768192221740,-1200.0,0.00012694,2]
[401411900,1768192221769,-173.68352102,0.00012694,2]
[401411901,1768192221914,-126.31647898,0.00012694,2]
[401411902,1768192221946,-150.0,0.00012694,2]
[401411903,1768192222002,-9700.01,0.00012695,2]
[401411904,1768192222030,-10000.01,0.00012695,2]
[401411905,1768192222217,-10000.01,0.00012695,2]
[401411906,1768192222611,-10000.01,0.00012695,2]
[401411907,1768192222884,-201.82534366,0.00012695,2]
[401411915,1768192231754,-994.03582486,0.00012607,2]
[401411917,1768192231765,-44199.70526654,0.00012685,2]
[401411919,1768192231779,-203676.28372425,0.00012695,2]
[401411921,1768192231791,-100698.07295258,0.00012695,2]
[401411922,1768192231802,-54057.90107103,0.00012695,2]
[401411923,1768192231813,-75507.250047,0.00012695,2]
[401411924,1768192231825,-4023.44972155,0.00012695,2]
[401411925,1768192231836,-676.92004919,0.00012695,2]
[401411926,1768192231849,-391.2107439,0.00012695,2]
[401411927,1768192231860,-1905.14323361,0.00012695,2]
[401411928,1768192231871,-1541.76684916,0.00012695,2]
[401411929,1768192231883,-3710.18510261,0.00012695,2]
[401411930,1768192231894,-7839.14271676,0.00012695,2]
[401411931,1768192231910,-277.11824019,0.00012695,2]
[401411932,1768192231930,-1059.18764589,0.00012695,2]
[401411933,1768192231940,-429.03935746,0.00012695,2]
[401411934,1768192231975,-3187.18357432,0.00012695,2]
[401411939,1768192237848,-21918.08337215,0.00012695,2]
[401411940,1768192237903,-559.70892886,0.00012695,2]
[401411941,1768192237958,-500.0,0.00012695,2]
[401411942,1768192237972,-1402.02305659,0.00012695,2]
[401411943,1768192237984,-661.68,0.00012695,2]
[401411944,1768192237996,-5263.42639381,0.00012695,2]
[401411945,1768192238009,-354097.31291303,0.00012695,2]
[401411946,1768192238024,-1575.97488614,0.00012695,2]
[401411948,1768192239976,-12154.95541527,0.00012695,2]
[401411949,1768192239986,-16364.33266331,0.00012707,2]
[401411950,1768192239996,-150.0,0.00012735,2]
[401411951,1768192240006,-500.0,0.00012735,2]
[401411952,1768192240016,-500.0,0.00012735,2]
[401411953,1768192240026,-2156.4641,0.00012748,2]
[401411954,1768192240036,-150.0,0.00012789,2]
[401411955,1768192240047,-500.0,0.00012789,2]
[401411956,1768192240059,-420.42320075,0.00012789,2]
[401411957,1768192240069,-787.26235867,0.00012807,2]
[401411958,1768192240080,-787.26235867,0.00012807,2]
[401411959,1768192240091,-194.69690525,0.00012844,2]
[401411960,1768192240109,-500.0,0.00012844,2]
[401411961,1768192240121,-500.0,0.00012899,2]
[401411962,1768192240131,-1000.0,0.00012907,2]
[401411963,1768192240141,-6215.0375,0.00012907,2]
[401411964,1768192240151,-1494.0,0.00012954,2]
[401411965,1768192240163,-515.0,0.00012954,2]
[401411966,1768192240174,-500.0,0.00012954,2]
[401411967,1768192240185,-524.14309988,0.00012954,2]
[401411968,1768192240194,-1494.0,0.00013009,2]
[401411969,1768192240204,-515.0,0.00013009,2]
[401411970,1768192240214,-191.44753185,0.00013009,2]
[401411971,1768192240224,-936.76429922,0.00013018,2]
[401411977,1768192240623,-4892.35675024,0.0001305,2]
[401411978,1768192240635,-1101.0,0.00013062,2]
[401411979,1768192240645,-1494.0,0.00013063,2]
[401411980,1768192240655,-515.0,0.00013063,2]
[401411981,1768192240664,-1494.0,0.00013118,2]
[401411982,1768192240673,-515.0,0.00013118,2]
[401411983,1768192240683,-16139.26,0.00013151,2]
[401411984,1768192240693,-44123.32545147,0.00013159,2]
[401411985,1768192240702,-1494.0,0.00013173,2]
[401411986,1768192240712,-515.0,0.00013173,2]
[401411987,1768192240725,-1269.29,0.00013179,2]
[401411988,1768192240736,-1000.0,0.00013206,2]
[401411989,1768192240745,-1494.0,0.00013228,2]
[401411990,1768192240755,-515.0,0.00013228,2]
[401411991,1768192240765,-1494.0,0.00013283,2]
[401411992,1768192240778,-515.0,0.00013283,2]
[401411993,1768192240798,-4122.9611097,0.00013284,2]
[401411994,1768192240835,-12241.37155359,0.00013284,2]
[401411995,1768192240845,-6053.53019103,0.00013322,2]
[401411996,1768192240856,-460.14,0.00013322,2]
[401411997,1768192240867,-1727.05004987,0.00013322,2]
[401411998,1768192240878,-6472.53519972,0.00013322,2]
[401411999,1768192240888,-1494.0,0.00013337,2]
[401412000,1768192240897,-515.0,0.00013337,2]
[401412001,1768192240907,-500.0,0.00013392,2]
[401412002,1768192240917,-1494.0,0.00013392,2]
[401412003,1768192240926,-515.0,0.00013392,2]
[401412004,1768192240938,-1000.0,0.00013423,2]
[401412005,1768192240948,-250.0,0.00013434,2]
[401412006,1768192240958,-300.0,0.00013434,2]
[401412007,1768192240967,-195.0,0.00013434,2]
[401412008,1768192240977,-300.0,0.00013434,2]
[401412009,1768192240986,-1494.0,0.00013447,2]
[401412010,1768192240995,-515.0,0.00013447,2]
[401412011,1768192241006,-202.52855456,0.00013447,2]
[401412012,1768192241016,-530.44606972,0.00013447,2]
[401412013,1768192241027,-1269.29,0.00013453,2]
[401412014,1768192241037,-212.74395336,0.000135,2]
[401412015,1768192241047,-1494.0,0.00013502,2]
[401412016,1768192241059,-515.0,0.00013502,2]
[401412017,1768192241070,-787.26235866,0.00013535,2]
[401412018,1768192241080,-787.26235866,0.00013535,2]
[401412019,1768192241091,-886.22,0.00013542,2]
[401412020,1768192241101,-1494.0,0.00013557,2]
[401412021,1768192241111,-515.0,0.00013557,2]
[401412022,1768192241120,-1494.0,0.00013611,2]
[401412023,1768192241130,-515.0,0.00013611,2]
[401412024,1768192241139,-305.71227501,0.00013666,2]
[401412025,1768192241148,-1494.0,0.00013666,2]
[401412026,1768192241158,-515.0,0.00013666,2]
[401412027,1768192241168,-500.0,0.00013698,2]
[401412028,1768192241177,-602.58106697,0.00013698,2]
[401412029,1768192241186,-500.0,0.00013698,2]
[401412030,1768192241195,-518.76755169,0.00013698,2]
[401412031,1768192241204,-500.0,0.00013698,2]
[401412032,1768192241214,-404.51117323,0.00013698,2]
[401412033,1768192241223,-500.0,0.00013698,2]
[401412034,1768192241233,-500.0,0.00013698,2]
[401412035,1768192241243,-540.03623195,0.00013698,2]
[401412036,1768192241254,-508.50378479,0.00013698,2]
[401412037,1768192241265,-500.0,0.00013698,2]
[401412038,1768192241275,-500.0,0.00013698,2]
[401412039,1768192241285,-500.0,0.00013698,2]
[401412040,1768192241297,-200.63190487,0.00013698,2]
[401412041,1768192241307,-500.0,0.00013698,2]
[401412042,1768192241328,-500.0,0.00013698,2]
[401412043,1768192241340,-500.0,0.00013698,2]
[401412044,1768192241352,-341.67884985,0.00013698,2]
[401412045,1768192241362,-500.0,0.00013698,2]
[401412046,1768192241372,-500.0,0.00013698,2]
[401412047,1768192241382,-500.0,0.00013698,2]
[401412048,1768192241393,-500.0,0.00013698,2]
[401412049,1768192241404,-500.0,0.00013698,2]
[401412050,1768192241415,-500.0,0.00013698,2]
[401412051,1768192241425,-500.0,0.00013698,2]
[401412052,1768192241436,-500.0,0.00013698,2]
[401412053,1768192241447,-500.0,0.00013698,2]
[401412054,1768192241458,-500.0,0.00013698,2]
[401412055,1768192241469,-500.0,0.00013698,2]
[401412056,1768192241480,-500.0,0.00013698,2]
[401412057,1768192241490,-500.0,0.00013698,2]
[401412058,1768192241500,-772.32,0.00013699,2]
[401412059,1768192241510,-1494.0,0.00013721,2]
[401412060,1768192241520,-515.0,0.00013721,2]
[401412061,1768192241531,-1269.29,0.00013727,2]
[401412062,1768192241540,-694.75916372,0.00013729,2]
[401412063,1768192241550,-1101.0,0.0001375,2]
[401412064,1768192241559,-500.0,0.00013772,2]
[401412065,1768192241569,-1494.0,0.00013776,2]
[401412066,1768192241580,-515.0,0.00013776,2]
[401412067,1768192241589,-255.0,0.00013799,2]
[401412068,1768192241599,-1494.0,0.0001383,2]
[401412069,1768192241609,-515.0,0.0001383,2]
[401412070,1768192241619,-936.76429918,0.00013832,2]
[401412071,1768192241628,-16364.33266329,0.00013861,2]
[401412072,1768192241638,-701.02486096,0.00013873,2]
[401412073,1768192241648,-1508.50729897,0.00013885,2]
[401412074,1768192241658,-529.2930836,0.00013885,2]
[401412075,1768192241668,-250.0,0.00013888,2]
[401412076,1768192241682,-14713.25544062,0.00013894,2]
[401412077,1768192241692,-420.0,0.00013926,2]
[401412078,1768192241701,-994.03582485,0.00013934,2]
[401412079,1768192241711,-1680.0,0.00013964,2]
[401412080,1768192241720,-1269.29,0.00014001,2]
[401412081,1768192241731,-2500.0,0.00014016,2]
[401412082,1768192241742,-2500.0,0.00014016,2]
[401412083,1768192241751,-2500.0,0.00014016,2]
[401412084,1768192241760,-2500.0,0.00014016,2]
[401412085,1768192241770,-496.45597914,0.00014016,2]
[401412086,1768192241783,-307.87907859,0.00014016,2]
[401412087,1768192241793,-195.0,0.00014016,2]
[401412088,1768192241803,-195.0,0.00014074,2]
[401412089,1768192241814,-1936.99946493,0.00014074,2]
[401412090,1768192241824,-600.0,0.00014075,2]
[401412091,1768192241835,-600.0,0.00014075,2]
[401412092,1768192241848,-600.0,0.00014075,2]
[401412093,1768192241858,-600.0,0.00014075,2]
[401412094,1768192241868,-600.0,0.00014075,2]
[401412095,1768192241879,-787.26235866,0.00014262,2]
[401412096,1768192241890,-787.26235866,0.00014262,2]
[401412097,1768192241901,-1269.29,0.00014275,2]
[401412098,1768192241911,-249.29,0.00014331,2]
[401412099,1768192241921,-3725.38333766,0.0001439,2]
[401412100,1768192241931,-16364.33266329,0.00014438,2]
[401412101,1768192241941,-1047.04298225,0.00014457,2]
[401412102,1768192241950,-14713.25544062,0.00014467,2]
[401412103,1768192241960,-1101.0,0.00014473,2]
[401412104,1768192241971,-500.0,0.00014493,2]
[401412105,1768192241980,-1269.29,0.00014549,2]
[401412106,1768192241990,-936.76429918,0.00014645,2]
[401412107,1768192242001,-671.19,0.000147,2]
[401412108,1768192242011,-683.82185525,0.00014705,2]
[401412109,1768192242021,-268.06518829,0.00014705,2]
[401412110,1768192242031,-500.0,0.00014705,2]
[401412111,1768192242046,-500.0,0.00014705,2]
[401412112,1768192242056,-151.25256783,0.00014705,2]
[401412113,1768192242066,-500.0,0.00014705,2]
[401412114,1768192242076,-500.0,0.00014705,2]
[401412115,1768192242087,-354.6611943,0.00014705,2]
[401412116,1768192242098,-621.07435029,0.00014705,2]
[401412117,1768192242108,-322.6107,0.00014705,2]
[401412118,1768192242118,-250.0,0.00014705,2]
[401412119,1768192242128,-250.0,0.00014705,2]
[401412120,1768192242138,-250.0,0.00014705,2]
[401412121,1768192242148,-250.0,0.00014705,2]
[401412122,1768192242159,-250.0,0.00014705,2]
[401412123,1768192242169,-274.26884757,0.00014705,2]
[401412124,1768192242179,-250.0,0.00014705,2]
[401412125,1768192242189,-250.0,0.00014705,2]
[401412126,1768192242199,-250.0,0.00014705,2]
[401412127,1768192242209,-250.0,0.00014705,2]
[401412128,1768192242219,-250.0,0.00014705,2]
[401412129,1768192242229,-250.0,0.00014705,2]
[401412130,1768192242239,-587.42192138,0.00014705,2]
[401412131,1768192242249,-250.0,0.00014705,2]
[401412132,1768192242259,-250.0,0.00014705,2]
[401412133,1768192242270,-202.5130151,0.00014705,2]
[401412134,1768192242280,-500.0,0.00014705,2]
[401412135,1768192242290,-596.45794467,0.00014705,2]
[401412136,1768192242300,-620.0,0.00014705,2]
[401412137,1768192242310,-1000.0,0.00014705,2]
[401412138,1768192242320,-1000.0,0.00014705,2]
[401412139,1768192242329,-1000.0,0.00014705,2]
[401412140,1768192242339,-1000.0,0.00014705,2]
[401412141,1768192242351,-1000.0,0.00014705,2]
[401412142,1768192242362,-1000.0,0.00014705,2]
[401412143,1768192242372,-1000.0,0.00014705,2]
[401412144,1768192242383,-1000.0,0.00014705,2]
[401412145,1768192242397,-533.88981491,0.00014705,2]
[401412146,1768192242408,-1000.0,0.00014705,2]
[401412147,1768192242417,-1000.0,0.00014705,2]
[401412148,1768192242428,-1000.0,0.00014705,2]
[401412149,1768192242438,-1000.0,0.00014705,2]
[401412150,1768192242448,-1125.63397898,0.00014705,2]
[401412151,1768192242460,-250.0,0.00014705,2]
[401412152,1768192242472,-250.0,0.00014705,2]
[401412153,1768192242483,-998.0,0.00014705,2]
[401412154,1768192242494,-266.15702234,0.00014705,2]
[401412155,1768192242503,-250.0,0.00014705,2]
[401412156,1768192242513,-250.0,0.00014705,2]
[401412157,1768192242524,-250.0,0.00014705,2]
[401412158,1768192242535,-250.0,0.00014705,2]
[401412159,1768192242544,-250.0,0.00014705,2]
[401412160,1768192242554,-250.0,0.00014705,2]
[401412161,1768192242565,-250.0,0.00014705,2]
[401412162,1768192242575,-250.0,0.00014705,2]
[401412164,1768192242586,-250.0,0.00014705,2]
[401412166,1768192242596,-250.0,0.00014705,2]
[401412167,1768192242607,-250.0,0.00014705,2]
[401412168,1768192242617,-250.0,0.00014705,2]
[401412169,1768192242628,-262.80813108,0.00014705,2]
[401412170,1768192242640,-270.2171612,0.00014705,2]
[401412171,1768192242651,-271.58568813,0.00014728,5]
[401412172,1768192242661,-1269.29,0.00014823,2]
[401412173,1768192242675,-150.0,0.00014843,5]
[401412174,1768192242685,-1000.0,0.00014914,2]
[401412175,1768192242697,-787.26235866,0.0001499,2]
[401412177,1768192242707,-808.67938154,0.00014999,2]
[401412179,1768192242718,-433.0,0.00015005,2]
[401412180,1768192242729,-16364.33266329,0.00015015,2]
[401412181,1768192242746,-14713.25544062,0.00015039,2]
[401412182,1768192242756,-1269.29,0.00015097,2]
[401412183,1768192242767,-180.0,0.00015104,2]
[401412184,1768192242780,-151.0,0.00015105,2]
[401412185,1768192242792,-886.22,0.00015235,2]
[401412186,1768192242803,-1101.0,0.00015235,2]
[401412187,1768192242813,-151.0,0.0001525,2]
[401412188,1768192242823,-151.0,0.0001525,2]
[401412189,1768192242833,-553.64373807,0.00015253,2]
[401412190,1768192242844,-994.03582485,0.0001526,2]
[401412191,1768192242857,-587.0,0.00015277,2]
[401412192,1768192242868,-151.0,0.00015305,2]
[401412193,1768192242881,-151.0,0.00015305,2]
[401412194,1768192242892,-151.0,0.00015309,2]
[401412195,1768192242902,-151.0,0.00015309,2]
[401412196,1768192242913,-155.25,0.00015309,2]
[401412197,1768192242922,-151.0,0.00015309,2]
[401412198,1768192242933,-151.0,0.00015309,2]
[401412199,1768192242947,-178668.56981598,0.0001532,2]
[401412200,1768192242959,-2351.0,0.0001536,2]
[401412201,1768192242969,-3176.31379879,0.00015366,2]
[401412202,1768192242979,-1269.29,0.00015371,2]
[401412203,1768192242989,-507.28977184,0.000154,2]
[401412204,1768192243000,-936.76429918,0.00015459,2]
[401412205,1768192243010,-27723.2366084,0.0001559,2]
[401412206,1768192243021,-16364.33266329,0.00015592,2]
[401412207,1768192243031,-1000.0,0.00015602,2]
[401412208,1768192243042,-14713.25544062,0.00015611,2]
[401412209,1768192243052,-3731.00451843,0.0001564,2]
[401412210,1768192243062,-1269.29,0.00015645,2]
[401412211,1768192243074,-500.0,0.0001568,2]
[401412212,1768192243084,-574.12855637,0.00015801,2]
[401412213,1768192243095,-2043.0619228,0.00015807,2]
[401412214,1768192243106,-801.49309701,0.000159,2]
[401412215,1768192243119,-801.49309701,0.000159,2]
[401412216,1768192243131,-801.49309701,0.000159,2]
[401412217,1768192243143,-801.49309701,0.000159,2]
[401412218,1768192243153,-1000.0,0.00015918,2]
[401412219,1768192243163,-1269.38109109,0.00015919,2]
[401412220,1768192243173,-23780.61409031,0.00016,2]
[401412221,1768192243183,-66132.72306414,0.00016,2]
[401412222,1768192243194,-10000.00000017,0.00016,4]
[401412223,1768192243205,-1101.0,0.00016037,2]
[401412224,1768192243215,-334.5472959,0.00016074,2]
[401412225,1768192243226,-642.94,0.00016074,2]
[401412226,1768192243236,-9999.99,0.00016116,2]
[401412227,1768192243248,-150.0,0.00016116,2]
[401412228,1768192243257,-16364.33266329,0.00016169,2]
[401412229,1768192243267,-14713.25544062,0.00016183,2]
[401412230,1768192243277,-150.0,0.000162,2]
[401412231,1768192243287,-150.0,0.000162,2]
[401412232,1768192243296,-150.0,0.000162,2]
[401412233,1768192243306,-350.68764993,0.000162,2]
[401412234,1768192243316,-150.0,0.000162,2]
[401412235,1768192243326,-150.0,0.000162,2]
[401412236,1768192243336,-150.0,0.000162,2]
[401412237,1768192243346,-150.0,0.000162,2]
[401412238,1768192243357,-150.48103859,0.000162,2]
[401412239,1768192243367,-150.5110912,0.000162,2]
[401412240,1768192243376,-150.0,0.000162,2]
[401412243,1768192243385,-150.0,0.000162,2]
[401412245,1768192243395,-60716.01505166,0.000162,5]
[401412246,1768192243405,-6185.8902242,0.00016202,2]
[401412248,1768192243415,-350.68764993,0.00016218,2]
[401412249,1768192243426,-350.68764993,0.00016236,2]
[401412250,1768192243438,-350.68764993,0.00016255,2]
[401412251,1768192243449,-936.76429918,0.00016273,2]
[401412252,1768192243460,-350.68764993,0.00016273,2]
[401412253,1768192243471,-350.68764993,0.00016291,2]
[401412254,1768192243484,-736.0,0.000163,2]
[401412255,1768192243495,-350.68764993,0.00016309,2]
[401412256,1768192243512,-350.68764993,0.00016327,2]
[401412257,1768192243525,-150.0,0.00016329,2]
[401412258,1768192243536,-150.0,0.00016338,2]
[401412259,1768192243547,-200.0,0.0001634,2]
[401412260,1768192243559,-350.68764993,0.00016345,2]
[401412261,1768192243572,-595.37131296,0.00016349,2]
[401412262,1768192243583,-150.0,0.0001635,2]
[401412263,1768192243595,-350.68764993,0.00016364,2]
[401412264,1768192243604,-150.0,0.0001638,2]
[401412265,1768192243614,-350.68764993,0.00016382,2]
[401412266,1768192243624,-350.68764993,0.000164,2]
[401412267,1768192243634,-1000.0,0.00016405,2]
[401412268,1768192243644,-350.68764993,0.00016418,2]
[401412269,1768192243655,-150.0,0.00016425,2]
[401412270,1768192243665,-150.0,0.00016425,2]
[401412271,1768192243675,-350.68764993,0.00016436,2]